[Event "4NCL Div 1 2024-25"]
[Site "England"]
[Date "2024.11.23"]
[Round "1.33"]
[White "Gormally, Daniel W"]
[Black "Emms, John M"]
[Result "1/2-1/2"]
[ECO "D53"]
[WhiteElo "2424"]
[BlackElo "2413"]
[Annotator "RC"]
[PlyCount "63"]
[EventDate "2024.11.23"]
[EventType "team-tourn"]
[EventCountry "ENG"]
[SourceTitle "playchess.com"]
[Source "ChessBase"]
[SourceQuality "1"]
[TimeControl "40/6000+30:3000+30"]

1. d4 {[%emt 0:10:07]} d5 {[%emt 0:10:29]} 2. c4 {[%emt 0:00:09]} e6 {[%emt 0:00:18]} 3. Nf3 {[%emt 0:00:09]} Nf6 {[%emt 0:00:06]} 4. Nc3 {[%emt 0:00:04]} Be7 {[%emt 0:00:37]} 5. Bg5 {[%emt 0:00:40]} h6 {[%emt 0:01:02]} 6. Bh4 {[%emt 0:00:11]} dxc4 {[%emt 0:01:07]} 7. e3 {[%emt 0:01:05]} c5 {[%emt 0:00:29]} 8. Bxc4 {[%emt 0:02:43]} cxd4 {[%emt 0:00:18]} 9. exd4 {[%emt 0:03:52]} Nc6 {[%emt 0:00:29]} 10. O-O {[%emt 0:02:01]} O-O {[%emt 0:00:08]} 11. Re1 {[%emt 0:03:19]} a6 {[%emt 0:04:51]} 12. Bb3 {[%emt 0:02:47]} b5 {[%emt 0:12:10]} 13. Bxf6 {[%emt 0:13:12]} Bxf6 {[%emt 0:00:13]} 14. d5 {[%emt 0:00:10]} Bxc3 {[%emt 0:19:54]} 15. bxc3 {[%emt 0:00:31]} exd5 {[%emt 0:00:57]} 16. Bxd5 {[%emt 0:03:15]} Bb7 {[%emt 0:02:38]} 17. c4 {[%emt 0:08:16]} Na5 {[%emt 0:31:18]} 18. Bxb7 {[%emt 0:06:16]} Nxb7 {[%emt 0:04:31]} 19. Ne5 {[%emt 0:01:56]} Qxd1 {[%emt 0:04:56]} 20. Raxd1 {[%emt 0:02:54]} Rfd8 {[%emt 0:01:11]} 21. Nc6 {[%emt 0:06:22]} Rxd1 {[%emt 0:01:15]} 22. Rxd1 {[%emt 0:00:07]} bxc4 {[%emt 0:00:56]} 23. Rd4 {[%emt 0:00:23]} c3 {[%emt 0:02:22]} 24. Rc4 {[%emt 0:02:01]} Kf8 {[%emt 0:02:07]} 25. Rxc3 {[%emt 0:03:04]} Rc8 {[%emt 0:00:36]} 26. Rc4 {[%emt 0:05:51]} Nd8 {[%emt 0:02:12]} 27. Ne5 {[%emt 0:00:15]} Rxc4 {[%emt 0:00:04]} 28. Nxc4 {[%emt 0:00:04]} Ke7 {[%emt 0:00:11]} 29. Kf1 {[%emt 0:00:16]} Ke6 {[%emt 0:00:28]} 30. Ke2 {[%emt 0:00:26]} Nc6 {[%emt 0:00:23]} 31. a3 {[%emt 0:02:17]} Ne5 {[%emt 0:02:23]} 32. Ne3 {[%emt 0:02:59]} 1/2-1/2

[Event "4NCL Div 1 2024-25"]
[Site "England"]
[Date "2024.11.23"]
[Round "1.34"]
[White "Chow, Samuel"]
[Black "Ansell, Simon T"]
[Result "1-0"]
[ECO "D15"]
[WhiteElo "2348"]
[BlackElo "2323"]
[Annotator "RC"]
[PlyCount "57"]
[EventDate "2024.11.23"]
[EventType "team-tourn"]
[EventCountry "ENG"]
[SourceTitle "playchess.com"]
[Source "ChessBase"]
[SourceQuality "1"]
[TimeControl "40/6000+30:3000+30"]

1. d4 {[%emt 0:10:04]} d5 {[%emt 0:10:35]} 2. c4 {[%emt 0:00:10]} c6 {[%emt 0:00:07]} 3. Nc3 {[%emt 0:00:15]} Nf6 {[%emt 0:01:49]} 4. e3 {[%emt 0:00:19]} a6 {[%emt 0:00:29]} 5. Nf3 {[%emt 0:00:18]} b5 {[%emt 0:03:41]} 6. b3 {[%emt 0:00:21]} Bg4 {[%emt 0:01:29]} 7. a4 {[%emt 0:00:45]} b4 {[%emt 0:10:06]} 8. Ne2 {[%emt 0:00:12]} Bxf3 {[%emt 0:01:30]} 9. gxf3 {[%emt 0:00:08]} e6 {[%emt 0:06:07]} 10. Bg2 {[%emt 0:02:57]} Be7 {[%emt 0:02:11]} 11. e4 {[%emt 0:01:47]} O-O {[%emt 0:16:00]} 12. O-O {[%emt 0:03:25]} a5 {[%emt 0:02:51]} 13. e5 {[%emt 0:02:26]} Ne8 {[%emt 0:02:16]} 14. Be3 {[%emt 0:07:12]} Nd7 {[%emt 0:01:42]} 15. Rc1 {[%emt 0:03:47]} g6 {[%emt 0:02:10]} 16. cxd5 {[%emt 0:06:49]} cxd5 {[%emt 0:00:06]} 17. Rc6 {[%emt 0:00:45]} Ng7 {[%emt 0:02:06]} 18. Qd3 {[%emt 0:04:31]} Nb8 {[%emt 0:05:21]} 19. Rc2 {[%emt 0:00:15]} Qd7 {[%emt 0:00:47]} 20. Rfc1 {[%emt 0:00:40]} Ra7 {[%emt 0:00:07]} 21. Bf1 {[%emt 0:08:53]} Nf5 {[%emt 0:04:30]} 22. Ng3 {[%emt 0:03:26]} f6 {[%emt 0:00:11]} 23. Nxf5 {[%emt 0:01:49]} gxf5 {[%emt 0:02:47]} 24. Bh6 {[%emt 0:00:59]} Rd8 {[%emt 0:00:52]} 25. f4 {[%emt 0:02:52]} Kh8 {[%emt 0:07:57]} 26. Qg3 {[%emt 0:05:10]} Bf8 {[%emt 0:03:33]} 27. Bb5 {[%emt 0:01:47]} Qe7 {[%emt 0:00:19]} 28. exf6 {[%emt 0:04:12]} Qxf6 {[%emt 0:00:20]} 29. Bg5 {[%emt 0:00:48]} 1-0

[Event "4NCL Div 1 2024-25"]
[Site "England"]
[Date "2024.11.23"]
[Round "1.35"]
[White "Ledger, Andrew J"]
[Black "Camacho Collados, Jose"]
[Result "1-0"]
[ECO "E12"]
[WhiteElo "2328"]
[BlackElo "2348"]
[Annotator "RC"]
[PlyCount "109"]
[EventDate "2024.11.23"]
[EventType "team-tourn"]
[EventCountry "ENG"]
[SourceTitle "playchess.com"]
[Source "ChessBase"]
[SourceQuality "1"]
[TimeControl "40/6000+30:3000+30"]

1. d4 {[%emt 0:10:03]} e6 {[%emt 0:10:04]} 2. c4 {[%emt 0:00:46]} b6 {[%emt 0:00:04]} 3. a3 {[%emt 0:03:27]} Bb7 {[%emt 0:00:15]} 4. Nc3 {[%emt 0:00:05]} Nf6 {[%emt 0:00:32]} 5. Nf3 {[%emt 0:00:24]} Ne4 {[%emt 0:00:14]} 6. Nxe4 {[%emt 0:00:36]} Bxe4 {[%emt 0:00:06]} 7. Bf4 {[%emt 0:00:05]} Be7 {[%emt 0:03:11]} 8. Nd2 {[%emt 0:05:04]} Bb7 {[%emt 0:01:26]} 9. e4 {[%emt 0:01:37]} Bg5 {[%emt 0:01:15]} 10. Qg4 {[%emt 0:04:34]} Bxf4 {[%emt 0:00:28]} 11. Qxf4 {[%emt 0:00:06]} d6 {[%emt 0:00:30]} 12. Be2 {[%emt 0:06:33]} Qf6 {[%emt 0:02:03]} 13. Qxf6 {[%emt 0:08:54]} gxf6 {[%emt 0:00:06]} 14. d5 {[%emt 0:00:44]} a5 {[%emt 0:04:16]} 15. b3 {[%emt 0:05:15]} Nd7 {[%emt 0:11:15]} 16. O-O {[%emt 0:08:28]} Rg8 {[%emt 0:00:19]} 17. g3 {[%emt 0:01:06]} O-O-O {[%emt 0:13:54]} 18. Bh5 {[%emt 0:06:59]} exd5 {[%emt 0:04:49]} 19. exd5 {[%emt 0:03:52]} Rdf8 {[%emt 0:04:33]} 20. f4 {[%emt 0:03:20]} b5 {[%emt 0:11:48]} 21. Rad1 {[%emt 0:05:38]} f5 {[%emt 0:09:22]} 22. Be2 {[%emt 0:05:33]} bxc4 {[%emt 0:10:58]} 23. bxc4 {[%emt 0:01:26]} Nc5 {[%emt 0:00:33]} 24. Nf3 {[%emt 0:02:19]} Re8 {[%emt 0:02:38]} 25. Nd4 {[%emt 0:01:44]} Re3 {[%emt 0:04:16]} 26. Rf3 {[%emt 0:02:27]} Rge8 {[%emt 0:01:10]} 27. Kf2 {[%emt 0:01:26]} Rc3 {[%emt 0:09:07]} 28. Rxc3 {[%emt 0:08:51]} Ne4+ {[%emt 0:00:02]} 29. Kf3 {[%emt 0:00:09]} Nxc3 {[%emt 0:00:10]} 30. Rd2 {[%emt 0:01:00]} Ne4 {[%emt 0:05:25]} 31. Rc2 {[%emt 0:01:03]} Nc5 {[%emt 0:00:27]} 32. Nxf5 {[%emt 0:00:44]} Kd7 {[%emt 0:00:34]} 33. Bf1 {[%emt 0:01:19]} c6 {[%emt 0:00:25]} 34. Ne3 {[%emt 0:01:05]} Kc7 {[%emt 0:00:30]} 35. g4 {[%emt 0:02:06]} f6 {[%emt 0:00:30]} 36. h4 {[%emt 0:00:13]} h6 {[%emt 0:00:25]} 37. Rg2 {[%emt 0:01:10]} cxd5 {[%emt 0:00:43]} 38. cxd5 {[%emt 0:00:19]} Rf8 {[%emt 0:00:34]} 39. Bb5 {[%emt 0:01:38]} Rf7 {[%emt 0:00:24]} 40. Rd2 {[%emt 0:01:27]} Bc8 {[%emt 0:00:30]} 41. Bd3 {[%emt 0:29:28]} Re7 {[%emt 0:23:43]} 42. Bf5 {[%emt 0:00:55]} Bb7 {[%emt 0:01:36]} 43. g5 {[%emt 0:02:59]} fxg5 {[%emt 0:01:39]} 44. hxg5 {[%emt 0:00:22]} hxg5 {[%emt 0:05:59]} 45. fxg5 {[%emt 0:00:04]} Nd7 {[%emt 0:00:59]} 46. Bxd7 {[%emt 0:04:24]} Kxd7 {[%emt 0:00:20]} 47. Rg2 {[%emt 0:03:19]} Ke8 {[%emt 0:02:17]} 48. g6 {[%emt 0:00:31]} Kf8 {[%emt 0:03:18]} 49. Kf4 {[%emt 0:00:17]} Bc8 {[%emt 0:06:00]} 50. Rc2 {[%emt 0:00:58]} Bd7 {[%emt 0:05:43]} 51. Rc7 {[%emt 0:02:56]} Ke8 {[%emt 0:01:51]} 52. Ra7 {[%emt 0:01:06]} Rg7 {[%emt 0:01:44]} 53. Ra8+ {[%emt 0:00:53]} Ke7 {[%emt 0:00:05]} 54. Nf5+ {[%emt 0:00:07]} Bxf5 {[%emt 0:00:06]} 55. Kxf5 {[%emt 0:00:04]} 1-0

[Event "4NCL Div 1 2024-25"]
[Site "England"]
[Date "2024.11.23"]
[Round "1.36"]
[White "Navrotescu, Andreea"]
[Black "Bates, Richard A"]
[Result "1-0"]
[ECO "A17"]
[WhiteElo "2338"]
[BlackElo "2315"]
[Annotator "RC"]
[PlyCount "111"]
[EventDate "2024.11.23"]
[EventType "team-tourn"]
[EventCountry "ENG"]
[SourceTitle "playchess.com"]
[Source "ChessBase"]
[SourceQuality "1"]
[TimeControl "40/6000+30:3000+30"]

1. c4 {[%emt 0:10:03]} e6 {[%emt 0:11:02]} 2. Nc3 {[%emt 0:00:23]} Bb4 {[%emt 0:00:29]} 3. g3 {[%emt 0:01:05]} Nf6 {[%emt 0:00:49]} 4. Bg2 {[%emt 0:00:21]} O-O {[%emt 0:01:50]} 5. a3 {[%emt 0:07:23]} Bxc3 {[%emt 0:01:20]} 6. bxc3 {[%emt 0:00:04]} d5 {[%emt 0:09:43]} 7. cxd5 {[%emt 0:01:21]} exd5 {[%emt 0:00:25]} 8. Nf3 {[%emt 0:00:59]} Nc6 {[%emt 0:08:28]} 9. O-O {[%emt 0:01:18]} Re8 {[%emt 0:00:46]} 10. d3 {[%emt 0:07:21]} h6 {[%emt 0:02:13]} 11. h3 {[%emt 0:02:35]} b6 {[%emt 0:06:10]} 12. Bb2 {[%emt 0:08:31]} Bb7 {[%emt 0:01:24]} 13. Qc2 {[%emt 0:02:00]} Na5 {[%emt 0:02:55]} 14. Rad1 {[%emt 0:03:22]} Qe7 {[%emt 0:02:06]} 15. Rfe1 {[%emt 0:00:19]} c5 {[%emt 0:02:48]} 16. Nh4 {[%emt 0:02:35]} Qe6 {[%emt 0:08:16]} 17. g4 {[%emt 0:21:33]} Rad8 {[%emt 0:04:52]} 18. d4 {[%emt 0:04:58]} Nc4 {[%emt 0:02:44]} 19. Bc1 {[%emt 0:00:22]} Ne4 {[%emt 0:02:27]} 20. Nf5 {[%emt 0:03:17]} h5 {[%emt 0:03:00]} 21. f3 {[%emt 0:05:27]} Ned6 {[%emt 0:01:46]} 22. Nxd6 {[%emt 0:08:25]} Qxd6 {[%emt 0:03:49]} 23. e3 {[%emt 0:02:36]} hxg4 {[%emt 0:01:27]} 24. hxg4 {[%emt 0:00:01]} Re6 {[%emt 0:01:32]} 25. e4 {[%emt 0:07:08]} dxe4 {[%emt 0:05:52]} 26. d5 {[%emt 0:00:02]} Rg6 {[%emt 0:06:40]} 27. Rxe4 {[%emt 0:00:30]} b5 {[%emt 0:00:26]} 28. Qe2 {[%emt 0:03:47]} Bxd5 {[%emt 0:04:15]} 29. Re8+ {[%emt 0:00:32]} Rxe8 {[%emt 0:00:20]} 30. Qxe8+ {[%emt 0:00:02]} Kh7 {[%emt 0:00:12]} 31. Kf2 {[%emt 0:03:20]} Bc6 {[%emt 0:07:11]} 32. Rh1+ {[%emt 0:01:24]} Rh6 {[%emt 0:00:04]} 33. Bxh6 {[%emt 0:00:39]} Bxe8 {[%emt 0:00:05]} 34. Bf4+ {[%emt 0:00:05]} Kg8 {[%emt 0:00:49]} 35. Bxd6 {[%emt 0:00:08]} Nxd6 {[%emt 0:00:21]} 36. Rd1 {[%emt 0:01:37]} Nc4 {[%emt 0:00:39]} 37. f4 {[%emt 0:01:13]} Kf8 {[%emt 0:00:50]} 38. Rd8 {[%emt 0:01:36]} Ke7 {[%emt 0:00:54]} 39. Ra8 {[%emt 0:00:50]} a5 {[%emt 0:00:53]} 40. Be4 {[%emt 0:00:35]} a4 {[%emt 0:01:11]} 41. Bd3 {[%emt 0:28:39]} Nxa3 {[%emt 0:26:14]} 42. Rc8 {[%emt 0:00:22]} c4 {[%emt 0:08:20]} 43. Be4 {[%emt 0:00:01]} Bd7 {[%emt 0:00:05]} 44. Rg8 {[%emt 0:03:27]} g6 {[%emt 0:06:46]} 45. g5 {[%emt 0:00:53]} b4 {[%emt 0:08:01]} 46. cxb4 {[%emt 0:20:21]} Nb5 {[%emt 0:00:05]} 47. Ra8 {[%emt 0:00:00]} a3 {[%emt 0:05:34]} 48. Ke3 {[%emt 0:00:00]} Kd6 {[%emt 0:00:49]} 49. Ra6+ {[%emt 0:00:00]} Kc7 {[%emt 0:00:28]} 50. Bd5 {[%emt 0:00:00]} c3 {[%emt 0:00:50]} 51. Bxf7 {[%emt 0:00:00]} Kb7 {[%emt 0:02:29]} 52. Ra5 {[%emt 0:00:00]} Nd6 {[%emt 0:00:50]} 53. Bd5+ {[%emt 0:00:00]} Kb6 {[%emt 0:01:58]} 54. Rxa3 {[%emt 0:00:00]} Nb5 {[%emt 0:00:45]} 55. Ra1 {[%emt 0:00:00]} Bf5 {[%emt 0:00:09]} 56. Be4 {[%emt 0:00:00]} 1-0

[Event "4NCL Div 1 2024-25"]
[Site "England"]
[Date "2024.11.23"]
[Round "1.42"]
[White "Waldhausen Gordon, Frederick"]
[Black "Merry, Alan B"]
[Result "0-1"]
[ECO "D24"]
[WhiteElo "2361"]
[BlackElo "2417"]
[Annotator "RC"]
[PlyCount "84"]
[EventDate "2024.11.23"]
[EventType "team-tourn"]
[EventCountry "ENG"]
[SourceTitle "playchess.com"]
[Source "ChessBase"]
[SourceQuality "1"]
[TimeControl "40/6000+30:3000+30"]

1. d4 {[%emt 0:10:03]} Nf6 {[%emt 0:10:05]} 2. c4 {[%emt 0:00:03]} e6 {[%emt 0:00:03]} 3. Nf3 {[%emt 0:00:07]} d5 {[%emt 0:00:03]} 4. Nc3 {[%emt 0:00:06]} dxc4 {[%emt 0:00:05]} 5. e4 {[%emt 0:00:07]} b5 {[%emt 0:00:04]} 6. e5 {[%emt 0:00:05]} Nd5 {[%emt 0:00:05]} 7. Nxb5 {[%emt 0:00:04]} Nb6 {[%emt 0:00:07]} 8. Be2 {[%emt 0:00:14]} Nc6 {[%emt 0:00:04]} 9. O-O {[%emt 0:00:08]} Be7 {[%emt 0:00:14]} 10. Be3 {[%emt 0:00:42]} O-O {[%emt 0:10:48]} 11. Qc1 {[%emt 0:03:07]} Rb8 {[%emt 0:19:18]} 12. Nc3 {[%emt 0:00:26]} Nb4 {[%emt 0:02:28]} 13. Rd1 {[%emt 0:04:40]} Ba6 {[%emt 0:01:16]} 14. a3 {[%emt 0:05:19]} N4d5 {[%emt 0:05:40]} 15. b3 {[%emt 0:11:45]} Qc8 {[%emt 0:13:45]} 16. Nxd5 {[%emt 0:08:34]} exd5 {[%emt 0:00:21]} 17. bxc4 {[%emt 0:00:11]} Bxc4 {[%emt 0:02:05]} 18. Bxc4 {[%emt 0:00:40]} Nxc4 {[%emt 0:03:39]} 19. Bg5 {[%emt 0:02:50]} Bxg5 {[%emt 0:02:49]} 20. Qxg5 {[%emt 0:00:12]} Rb2 {[%emt 0:03:20]} 21. Nh4 {[%emt 0:06:18]} h6 {[%emt 0:04:39]} 22. Qh5 {[%emt 0:02:09]} Qe6 {[%emt 0:02:54]} 23. f4 {[%emt 0:04:31]} Qb6 {[%emt 0:08:32]} 24. f5 {[%emt 0:30:09]} Ne3 {[%emt 0:12:22]} 25. f6 {[%emt 0:07:12]} Nxd1 {[%emt 0:00:26]} 26. Qg4 {[%emt 0:00:51]} g5 {[%emt 0:00:36]} 27. Rxd1 {[%emt 0:00:15]} Rb1 {[%emt 0:00:54]} 28. Nf5 {[%emt 0:01:01]} Rb8 {[%emt 0:04:04]} 29. Nxh6+ {[%emt 0:03:16]} Kf8 {[%emt 0:00:10]} 30. h3 {[%emt 0:01:43]} Rxd1+ {[%emt 0:00:13]} 31. Qxd1 {[%emt 0:00:05]} Qb1 {[%emt 0:00:09]} 32. Qxb1 {[%emt 0:00:04]} Rxb1+ {[%emt 0:00:04]} 33. Kf2 {[%emt 0:00:04]} Ra1 {[%emt 0:00:42]} 34. Nf5 {[%emt 0:00:40]} Rxa3 {[%emt 0:00:06]} 35. Ne7 {[%emt 0:00:05]} a5 {[%emt 0:02:10]} 36. Nxd5 {[%emt 0:00:14]} a4 {[%emt 0:00:40]} 37. Nxc7 {[%emt 0:00:20]} Rb3 {[%emt 0:00:58]} 38. d5 {[%emt 0:00:28]} a3 {[%emt 0:00:50]} 39. e6 {[%emt 0:00:22]} fxe6 {[%emt 0:00:45]} 40. dxe6 {[%emt 0:00:11]} Rb8 {[%emt 0:00:35]} 41. Na6 {[%emt 0:51:21]} Ra8 {[%emt 0:50:48]} 42. Nc7 {[%emt 0:01:36]} a2 {[%emt 0:00:00]} 0-1

[Event "4NCL Div 1 2024-25"]
[Site "England"]
[Date "2024.11.23"]
[Round "1.43"]
[White "Taylor, Martin R"]
[Black "Gourlay, Iain"]
[Result "1/2-1/2"]
[ECO "A13"]
[WhiteElo "2353"]
[BlackElo "2303"]
[Annotator "RC"]
[PlyCount "76"]
[EventDate "2024.11.23"]
[EventType "team-tourn"]
[EventCountry "ENG"]
[SourceTitle "playchess.com"]
[Source "ChessBase"]
[SourceQuality "1"]
[TimeControl "40/6000+30:3000+30"]

1. c4 {[%emt 0:10:03]} e6 {[%emt 0:13:07]} 2. g3 {[%emt 0:00:27]} d5 {[%emt 0:00:21]} 3. Bg2 {[%emt 0:00:19]} Nf6 {[%emt 0:00:50]} 4. Nf3 {[%emt 0:00:11]} Bd6 {[%emt 0:00:36]} 5. O-O {[%emt 0:01:10]} O-O {[%emt 0:00:32]} 6. Qc2 {[%emt 0:02:01]} Nc6 {[%emt 0:04:56]} 7. d4 {[%emt 0:08:57]} dxc4 {[%emt 0:12:40]} 8. Qxc4 {[%emt 0:02:58]} e5 {[%emt 0:03:04]} 9. Nc3 {[%emt 0:29:12]} exd4 {[%emt 0:09:37]} 10. Nxd4 {[%emt 0:00:44]} Nxd4 {[%emt 0:03:47]} 11. Qxd4 {[%emt 0:00:07]} Qe7 {[%emt 0:10:52]} 12. Bf4 {[%emt 0:06:34]} Bxf4 {[%emt 0:03:54]} 13. Qxf4 {[%emt 0:00:35]} c6 {[%emt 0:00:47]} 14. Rad1 {[%emt 0:05:04]} Be6 {[%emt 0:00:49]} 15. e4 {[%emt 0:02:01]} Rfd8 {[%emt 0:03:39]} 16. e5 {[%emt 0:05:08]} Nd7 {[%emt 0:02:06]} 17. Rd6 {[%emt 0:13:18]} f6 {[%emt 0:06:06]} 18. exf6 {[%emt 0:02:03]} Nxf6 {[%emt 0:00:16]} 19. Rxd8+ {[%emt 0:06:44]} Rxd8 {[%emt 0:00:10]} 20. Qe3 {[%emt 0:00:31]} a6 {[%emt 0:05:11]} 21. Re1 {[%emt 0:00:33]} Re8 {[%emt 0:01:38]} 22. Bh3 {[%emt 0:05:31]} Kf7 {[%emt 0:00:27]} 23. Qb6 {[%emt 0:00:52]} Qd7 {[%emt 0:03:47]} 24. Rd1 {[%emt 0:01:23]} Qc8 {[%emt 0:06:58]} 25. Bxe6+ {[%emt 0:00:24]} Kxe6 {[%emt 0:07:57]} 26. Na4 {[%emt 0:02:22]} Kf7 {[%emt 0:01:50]} 27. Qb3+ {[%emt 0:00:47]} Kf8 {[%emt 0:01:14]} 28. Nc5 {[%emt 0:01:15]} Re7 {[%emt 0:00:33]} 29. Kg2 {[%emt 0:01:10]} Nd5 {[%emt 0:00:29]} 30. h3 {[%emt 0:01:14]} Rf7 {[%emt 0:01:37]} 31. Qd3 {[%emt 0:00:44]} Kg8 {[%emt 0:00:24]} 32. Re1 {[%emt 0:00:57]} Qf8 {[%emt 0:01:37]} 33. Qd4 {[%emt 0:00:19]} Re7 {[%emt 0:01:23]} 34. Rxe7 {[%emt 0:00:43]} Qxe7 {[%emt 0:00:11]} 35. a3 {[%emt 0:00:44]} a5 {[%emt 0:01:14]} 36. h4 {[%emt 0:00:33]} h6 {[%emt 0:01:28]} 37. Kf1 {[%emt 0:00:30]} b6 {[%emt 0:01:12]} 38. Nd3 {[%emt 0:00:37]} Qe6 {[%emt 0:00:38]} 1/2-1/2

[Event "4NCL Div 1 2024-25"]
[Site "England"]
[Date "2024.11.23"]
[Round "1.44"]
[White "Berry, Neil"]
[Black "Rogers, Jonathan W"]
[Result "0-1"]
[ECO "D08"]
[WhiteElo "2248"]
[BlackElo "2331"]
[Annotator "RC"]
[PlyCount "70"]
[EventDate "2024.11.23"]
[EventType "team-tourn"]
[EventCountry "ENG"]
[SourceTitle "playchess.com"]
[Source "ChessBase"]
[SourceQuality "1"]
[TimeControl "40/6000+30:3000+30"]

1. d4 {[%emt 0:10:21]} d5 {[%emt 0:17:39]} 2. c4 {[%emt 0:01:42]} e5 {[%emt 0:00:11]} 3. dxe5 {[%emt 0:00:44]} Ne7 {[%emt 0:04:50]} 4. Nf3 {[%emt 0:05:34]} Nbc6 {[%emt 0:02:02]} 5. e3 {[%emt 0:22:57]} Bg4 {[%emt 0:05:10]} 6. Be2 {[%emt 0:11:45]} dxc4 {[%emt 0:11:44]} 7. Qa4 {[%emt 0:01:31]} Ng6 8. Nbd2 {[%emt 0:06:34]} Bb4 {[%emt 0:07:43]} 9. a3 {[%emt 0:04:23]} Bxd2+ {[%emt 0:05:55]} 10. Bxd2 {[%emt 0:00:51]} Bxf3 {[%emt 0:00:08]} 11. gxf3 {[%emt 0:08:23]} Ngxe5 {[%emt 0:03:00]} 12. Bc3 {[%emt 0:00:32]} Qd5 {[%emt 0:03:40]} 13. Rd1 {[%emt 0:18:38]} Nd3+ {[%emt 0:01:38]} 14. Bxd3 {[%emt 0:01:31]} cxd3 {[%emt 0:00:08]} 15. Qg4 {[%emt 0:02:19]} Ne7 {[%emt 0:14:28]} 16. e4 {[%emt 0:02:04]} Qc4 {[%emt 0:00:43]} 17. O-O {[%emt 0:00:55]} h5 {[%emt 0:03:40]} 18. Qg5 {[%emt 0:01:13]} Rh6 {[%emt 0:01:19]} 19. Kh1 {[%emt 0:00:17]} Rg6 {[%emt 0:01:49]} 20. Qe3 {[%emt 0:00:37]} Rd8 {[%emt 0:01:01]} 21. Rd2 {[%emt 0:02:06]} Qe6 {[%emt 0:12:10]} 22. Rxd3 {[%emt 0:00:46]} Qh3 {[%emt 0:01:12]} 23. Rxd8+ {[%emt 0:00:36]} Kxd8 {[%emt 0:00:06]} 24. Rg1 {[%emt 0:00:08]} Rxg1+ {[%emt 0:00:42]} 25. Kxg1 {[%emt 0:00:06]} Ng6 {[%emt 0:00:07]} 26. Bxg7 {[%emt 0:01:23]} Kc8 {[%emt 0:00:40]} 27. Bf6 {[%emt 0:00:35]} b6 {[%emt 0:00:07]} 28. b4 {[%emt 0:02:23]} Qe6 {[%emt 0:00:18]} 29. Qd4 {[%emt 0:00:45]} Nf4 {[%emt 0:00:17]} 30. Qe5 {[%emt 0:00:29]} Ne2+ {[%emt 0:01:00]} 31. Kf1 {[%emt 0:00:47]} Qc4 {[%emt 0:00:13]} 32. Kg2 {[%emt 0:01:37]} Qc1 {[%emt 0:01:19]} 33. Bg5 {[%emt 0:01:14]} Qg1+ {[%emt 0:00:43]} 34. Kh3 {[%emt 0:00:02]} Qxf2 {[%emt 0:00:15]} 35. Qf5+ {[%emt 0:01:31]} Kb8 {[%emt 0:00:10]} 0-1